fUSD/lending_fUSD_20240403
["ID","MTS","AMOUNT","RATE_DAILY","PERIOD"]
[321385268,1712110258407,-250.0,0.000546,120]
[321385269,1712110258417,-202.57338581,0.00054603,60]
[321385270,1712110258426,-202.57338581,0.00054613,60]
[321385271,1712110258435,-154.12212371,0.00054624,60]
[321385272,1712110258445,-153.53105328,0.00054626,60]
[321385273,1712110258454,-154.27788653,0.00054626,60]
[321385274,1712110258464,-538.0,0.00054631,120]
[321385275,1712110258473,-553.0,0.00054631,120]
[321385276,1712110258482,-153.53105328,0.00054632,60]
[321385277,1712110258492,-152.0,0.00054646,19]
[321385278,1712110258501,-154.35503135,0.00054648,60]
[321385279,1712110258510,-197.23746145,0.00054659,60]
[321385280,1712110258519,-155.01816655,0.000547,60]
[321385281,1712110258530,-380.05454496,0.00054712,120]
[321385282,1712110258540,-202.57338581,0.00054719,60]
[321385283,1712110258550,-260.20712411,0.00054722,60]
[321385284,1712110258559,-854.25062553,0.00054754,60]
[321385285,1712110258568,-1004.12,0.0005476,2]
[321385286,1712110258578,-361.02607952,0.00054769,60]
[321385287,1712110258587,-192.06566981,0.00054789,60]
[321385288,1712110258597,-170.46692632,0.00054792,30]
[321385289,1712110258608,-53858.31905839,0.00054793,30]
[321385290,1712110258619,-30761.43850005,0.00054793,30]
[321385291,1712110258628,-500.0,0.00054794,30]
[321385292,1712110258638,-500.0,0.00054794,120]
[321385293,1712110258647,-320.20099778,0.00054794,2]
[321385294,1712110258657,-445.56769938,0.00054794,120]
[321385295,1712110258666,-200.0,0.00054794,10]
[321385296,1712110258676,-500.0,0.00054794,2]
[321385297,1712110258686,-435.16965693,0.00054794,2]
[321385298,1712110258695,-500.0,0.00054794,120]
[321385299,1712110258705,-500.0,0.00054794,120]
[321385300,1712110258714,-511.84722999,0.00054794,120]
[321385301,1712110258724,-522.31587238,0.00054794,120]
[321385302,1712110258732,-500.0,0.00054794,120]
[321385303,1712110258742,-509.47297662,0.00054794,120]
[321385304,1712110258751,-500.0,0.00054794,2]
[321385305,1712110258760,-521.5963943,0.00054794,120]
[321385306,1712110258774,-513.69948777,0.00054794,120]
[321385307,1712110258783,-500.0,0.00054794,120]
[321385308,1712110258792,-500.0,0.00054794,120]
[321385309,1712110258801,-512.17552216,0.00054794,120]
[321385310,1712110258811,-500.0,0.00054794,120]
[321385311,1712110258820,-500.0,0.00054794,120]
[321385312,1712110258830,-500.0,0.00054794,2]
[321385313,1712110258840,-500.0,0.00054794,120]
[321385314,1712110258850,-500.0,0.00054794,120]
[321385315,1712110258861,-500.0,0.00054794,120]
[321385316,1712110258870,-500.0,0.00054794,120]
[321385317,1712110258878,-500.0,0.00054794,120]
[321385318,1712110258888,-500.0,0.00054794,120]
[321385319,1712110258897,-513.52187505,0.00054794,120]
[321385320,1712110258907,-500.0,0.00054794,120]
[321385321,1712110258917,-500.0,0.00054794,120]
[321385322,1712110258926,-503.00777923,0.00054794,2]
[321385323,1712110258935,-260.08704108,0.00054794,120]
[321385324,1712110258945,-500.0,0.00054794,120]
[321385325,1712110258954,-501.52,0.00054794,120]
[321385326,1712110258963,-500.0,0.00054794,120]
[321385327,1712110258973,-500.0,0.00054794,120]
[321385328,1712110258982,-537.40361649,0.00054794,120]
[321385329,1712110258992,-500.0,0.00054794,120]
[321385330,1712110259001,-500.0,0.00054794,120]
[321385331,1712110259011,-433.07382979,0.00054794,120]
[321385332,1712110259021,-500.0,0.00054794,120]
[321385333,1712110259030,-500.0,0.00054794,15]
[321385334,1712110259039,-508.30182175,0.00054794,120]
[321385335,1712110259049,-500.0,0.00054794,120]
[321385336,1712110259058,-500.0,0.00054794,120]
[321385337,1712110259067,-500.0,0.00054794,120]
[321385338,1712110259077,-500.0,0.00054794,120]
[321385339,1712110259086,-500.0,0.00054794,120]
[321385340,1712110259095,-500.0,0.00054794,120]
[321385341,1712110259104,-514.36933452,0.00054794,120]
[321385342,1712110259114,-500.0,0.00054794,120]
[321385343,1712110259123,-514.21727186,0.00054794,120]
[321385344,1712110259133,-500.0,0.00054794,120]
[321385345,1712110259143,-500.0,0.00054794,120]
[321385346,1712110259152,-500.0,0.00054794,120]
[321385347,1712110259161,-540.36706192,0.00054794,120]
[321385348,1712110259171,-500.0,0.00054794,120]
[321385349,1712110259180,-522.35588345,0.00054794,120]
[321385350,1712110259190,-500.0,0.00054794,120]
[321385351,1712110259198,-500.0,0.00054794,120]
[321385352,1712110259208,-500.0,0.00054794,120]
[321385353,1712110259217,-500.0,0.00054794,120]
[321385354,1712110259226,-500.0,0.00054794,120]
[321385355,1712110259236,-500.0,0.00054794,120]
[321385356,1712110259246,-500.0,0.00054794,120]
[321385357,1712110259255,-500.0,0.00054794,120]
[321385358,1712110259265,-602.83007659,0.00054794,2]
[321385359,1712110259275,-509.28673099,0.00054794,120]
[321385360,1712110259284,-500.0,0.00054794,120]
[321385361,1712110259293,-500.0,0.00054794,120]
[321385362,1712110259302,-500.0,0.00054794,120]
[321385363,1712110259312,-523.82154746,0.00054794,120]
[321385364,1712110259321,-523.28262806,0.00054794,120]
[321385365,1712110259331,-508.43084077,0.00054794,120]
[321385366,1712110259341,-500.0,0.00054794,120]
[321385367,1712110259350,-513.09672662,0.00054794,120]
[321385368,1712110259359,-500.0,0.00054794,120]
[321385369,1712110259368,-500.0,0.00054794,120]
[321385370,1712110259377,-500.0,0.00054794,120]
[321385371,1712110259387,-500.0,0.00054794,120]
[321385372,1712110259396,-500.0,0.00054794,120]
[321385373,1712110259406,-500.0,0.00054794,120]
[321385374,1712110259415,-155.63632697,0.00054794,30]
[321385375,1712110259425,-500.0,0.00054794,120]
[321385376,1712110259435,-733.03,0.00054794,120]
[321385377,1712110259445,-523.21142866,0.00054794,120]
[321385378,1712110259455,-500.0,0.00054794,120]
[321385379,1712110259464,-500.0,0.00054794,120]
[321385380,1712110259474,-567.15,0.00054794,120]
[321385381,1712110259484,-500.0,0.00054794,120]
[321385382,1712110259494,-634.67,0.00054794,120]
[321385383,1712110259504,-500.0,0.00054794,120]
[321385384,1712110259513,-500.0,0.00054794,120]
[321385385,1712110259523,-500.0,0.00054794,120]
[321385386,1712110259534,-518.19091644,0.00054794,120]
[321385387,1712110259711,-1805.07,0.00054794,120]
[321385388,1712110259720,-500.0,0.00054794,120]
[321385389,1712110259730,-500.0,0.00054794,120]
[321385390,1712110259739,-500.0,0.00054794,120]
[321385391,1712110259749,-500.0,0.00054794,120]
[321385392,1712110259758,-500.0,0.00054794,120]
[321385393,1712110259769,-754.83,0.00054794,120]
[321385394,1712110259780,-522.52532811,0.00054794,120]
[321385395,1712110259790,-236.21054229,0.00054794,120]
[321385396,1712110259800,-500.0,0.00054794,120]
[321385397,1712110259809,-1223.62,0.00054794,120]
[321385398,1712110259819,-592.26,0.00054794,120]
[321385399,1712110259828,-830.1,0.00054794,120]
[321385400,1712110259838,-970.93,0.00054794,120]
[321385401,1712110259847,-716.48,0.00054794,120]
[321385402,1712110259859,-695.9,0.00054794,120]
[321385403,1712110259868,-815.5,0.00054794,120]
[321385404,1712110259877,-500.0,0.00054794,120]
[321385405,1712110259886,-827.11,0.00054794,120]
[321385406,1712110259896,-505.86,0.00054794,120]
[321385407,1712110259906,-500.0,0.00054794,120]
[321385408,1712110259916,-613.45413135,0.00054794,120]
[321385409,1712110259926,-500.0,0.00054794,120]
[321385410,1712110259936,-500.0,0.00054794,120]
[321385411,1712110259945,-1031.05,0.00054794,120]
[321385412,1712110259955,-500.0,0.00054794,120]
[321385413,1712110259964,-500.0,0.00054794,120]
[321385414,1712110259974,-500.0,0.00054794,120]
[321385415,1712110259983,-500.0,0.00054794,120]
[321385416,1712110259992,-610.012936,0.00054794,120]
[321385417,1712110260002,-500.0,0.00054794,120]
[321385418,1712110260012,-519.87489007,0.00054794,120]
[321385419,1712110260021,-572.02,0.00054794,120]
[321385420,1712110260031,-500.0,0.00054794,120]
[321385421,1712110260040,-517.34665033,0.00054794,120]
[321385422,1712110260049,-620.04,0.00054794,120]
[321385423,1712110260059,-500.0,0.00054794,120]
[321385424,1712110260068,-500.0,0.00054794,120]
[321385425,1712110260077,-500.0,0.00054794,120]
[321385426,1712110260086,-518.36859391,0.00054794,30]
[321385427,1712110260096,-500.0,0.00054794,120]
[321385428,1712110260105,-1305.79,0.00054794,120]
[321385429,1712110260115,-1000.0,0.00054794,30]
[321385430,1712110260123,-500.0,0.00054794,120]
[321385431,1712110260133,-1048.09,0.00054794,120]
[321385432,1712110260142,-500.0,0.00054794,120]
[321385433,1712110260152,-741.62,0.00054794,120]
[321385434,1712110260161,-500.0,0.00054794,120]
[321385435,1712110260171,-500.0,0.00054794,120]
[321385436,1712110260181,-500.0,0.00054794,120]
[321385437,1712110260190,-858.87,0.00054794,120]
[321385438,1712110260200,-500.0,0.00054794,120]
[321385439,1712110260210,-500.0,0.00054794,120]
[321385440,1712110260219,-674.03,0.00054794,120]
[321385441,1712110260229,-647.02,0.00054794,120]
[321385442,1712110260239,-500.0,0.00054794,120]
[321385443,1712110260249,-500.0,0.00054794,120]
[321385444,1712110260258,-500.0,0.00054794,120]
[321385445,1712110260267,-500.0,0.00054794,120]
[321385446,1712110260277,-531.81,0.00054794,120]
[321385447,1712110260287,-500.0,0.00054794,120]
[321385448,1712110260297,-500.0,0.00054794,120]
[321385449,1712110260307,-500.0,0.00054794,120]
[321385450,1712110260317,-500.0,0.00054794,120]
[321385451,1712110260326,-1265.03,0.00054794,120]
[321385452,1712110260336,-500.0,0.00054794,120]
[321385453,1712110260346,-500.0,0.00054794,120]
[321385454,1712110260356,-500.0,0.00054794,120]
[321385455,1712110260368,-500.0,0.00054794,120]
[321385456,1712110260377,-500.0,0.00054794,120]
[321385457,1712110260387,-898.63,0.00054794,120]
[321385458,1712110260396,-911.45,0.00054794,120]
[321385459,1712110260406,-744.18,0.00054794,120]
[321385460,1712110260415,-500.0,0.00054794,120]
[321385461,1712110260425,-726.46,0.00054794,120]
[321385462,1712110260434,-500.0,0.00054794,120]
[321385463,1712110260444,-500.0,0.00054794,120]
[321385464,1712110260454,-279.73470373,0.00054794,120]
[321385465,1712110260464,-1635.23,0.00054794,120]
[321385466,1712110260474,-889.23,0.00054794,120]
[321385467,1712110260483,-500.0,0.00054794,120]
[321385468,1712110260493,-500.0,0.00054794,120]
[321385469,1712110260502,-199.24359166,0.00054794,120]
[321385470,1712110260511,-500.0,0.00054794,120]
[321385471,1712110260521,-500.0,0.00054794,120]
[321385472,1712110260530,-738.09,0.00054794,120]
[321385473,1712110260539,-598.13,0.00054794,50]
[321385474,1712110260549,-500.0,0.00054794,120]
[321385475,1712110260558,-500.0,0.00054794,120]
[321385476,1712110260567,-500.0,0.00054794,120]
[321385477,1712110260577,-500.0,0.00054794,120]
[321385478,1712110260586,-781.2,0.00054794,120]
[321385479,1712110260595,-500.0,0.00054794,120]
[321385480,1712110260604,-800.62,0.00054794,120]
[321385481,1712110260615,-500.0,0.00054794,120]
[321385482,1712110260624,-3000.0,0.00054794,120]
[321385483,1712110260634,-500.0,0.00054794,120]
[321385484,1712110260643,-500.0,0.00054794,120]
[321385485,1712110260653,-500.0,0.00054794,120]
[321385486,1712110260662,-551.66,0.00054794,120]
[321385487,1712110260672,-519.53869411,0.00054794,120]
[321385488,1712110260681,-768.64,0.00054794,120]
[321385489,1712110260690,-500.0,0.00054794,120]
[321385490,1712110260700,-500.0,0.00054794,120]
[321385491,1712110260709,-1313.21,0.00054794,120]
[321385492,1712110260719,-500.0,0.00054794,120]
[321385493,1712110260728,-500.0,0.00054794,120]
[321385494,1712110260737,-1158.69,0.00054794,120]
[321385495,1712110260747,-500.0,0.00054794,120]
[321385496,1712110260756,-500.0,0.00054794,120]
[321385497,1712110260766,-500.0,0.00054794,120]
[321385498,1712110260776,-500.0,0.00054794,120]
[321385499,1712110260789,-511.8287045,0.00054794,120]
[321385500,1712110260799,-904.81,0.00054794,120]
[321385501,1712110260808,-500.0,0.00054794,120]
[321385502,1712110260818,-1019.36,0.00054794,120]
[321385503,1712110260828,-1009.1,0.00054794,120]
[321385504,1712110260838,-500.0,0.00054794,120]
[321385505,1712110260847,-500.0,0.00054794,120]
[321385506,1712110260858,-500.0,0.00054794,120]
[321385507,1712110260873,-507.9552467,0.00054794,120]
[321385508,1712110260882,-500.0,0.00054794,120]
[321385509,1712110260892,-500.0,0.00054794,120]
[321385510,1712110260902,-503.33735693,0.00054794,120]
[321385511,1712110260911,-191.75093427,0.00054794,120]
[321385512,1712110260921,-1428.21,0.00054794,120]
[321385513,1712110260932,-500.0,0.00054794,120]
[321385514,1712110260941,-923.77,0.00054794,120]
[321385515,1712110260951,-542.57008553,0.00054794,120]
[321385516,1712110260960,-500.0,0.00054794,120]
[321385517,1712110260969,-500.0,0.00054794,120]
[321385518,1712110260979,-500.0,0.00054794,120]
[321385519,1712110260988,-1421.1,0.00054794,120]
[321385520,1712110260997,-561.37,0.00054794,120]
[321385521,1712110261006,-500.0,0.00054794,2]
[321385522,1712110261016,-500.0,0.00054794,120]
[321385523,1712110261026,-500.0,0.00054794,120]
[321385524,1712110261035,-500.0,0.00054794,120]
[321385525,1712110261045,-500.0,0.00054794,120]
[321385526,1712110261056,-515.9848065,0.00054794,120]
[321385527,1712110261065,-631.39,0.00054794,120]
[321385528,1712110261074,-500.0,0.00054794,120]
[321385529,1712110261083,-500.0,0.00054794,120]
[321385530,1712110261092,-999.61,0.00054794,120]
[321385531,1712110261102,-500.0,0.00054794,120]
[321385532,1712110261114,-500.0,0.00054794,120]
[321385533,1712110261123,-781.76,0.00054794,120]
[321385534,1712110261132,-500.0,0.00054794,120]
[321385535,1712110261142,-500.0,0.00054794,120]
[321385536,1712110261151,-500.0,0.00054794,120]
[321385537,1712110261161,-500.0,0.00054794,120]
[321385538,1712110261171,-500.0,0.00054794,120]
[321385539,1712110261181,-500.0,0.00054794,120]
[321385540,1712110261191,-861.22,0.00054794,120]
[321385541,1712110261200,-1034.01,0.00054794,120]
[321385542,1712110261210,-500.0,0.00054794,120]
[321385543,1712110261219,-500.0,0.00054794,120]
[321385544,1712110261228,-500.0,0.00054794,120]
[321385545,1712110261238,-1013.21,0.00054794,120]
[321385546,1712110261248,-500.0,0.00054794,120]
[321385547,1712110261257,-500.0,0.00054794,120]
[321385548,1712110261267,-500.0,0.00054794,120]
[321385549,1712110261276,-500.0,0.00054794,120]
[321385550,1712110261286,-500.0,0.00054794,120]
[321385551,1712110261296,-500.0,0.00054794,120]
[321385552,1712110261306,-500.0,0.00054794,120]
[321385553,1712110261316,-264.73884125,0.00054794,120]
[321385554,1712110261325,-783.1,0.00054794,120]
[321385555,1712110261335,-500.0,0.00054794,120]
[321385556,1712110261345,-973.5,0.00054794,120]
[321385557,1712110261355,-500.0,0.00054794,120]
[321385558,1712110261367,-500.0,0.00054794,120]
[321385559,1712110261377,-500.0,0.00054794,120]
[321385560,1712110261387,-500.0,0.00054794,120]
[321385561,1712110261396,-888.0,0.00054794,120]
[321385562,1712110261406,-500.0,0.00054794,120]
[321385563,1712110261416,-610.59,0.00054794,120]
[321385564,1712110261426,-737.46,0.00054794,120]
[321385565,1712110261435,-500.0,0.00054794,120]
[321385566,1712110261445,-600.75,0.00054794,120]
[321385567,1712110261455,-817.96,0.00054794,30]
[321385568,1712110261465,-513.30508126,0.00054794,120]
[321385569,1712110261475,-946.4,0.00054794,120]
[321385570,1712110261484,-627.12,0.00054794,120]
[321385571,1712110261493,-642.05,0.00054794,120]
[321385572,1712110261503,-500.0,0.00054794,120]
[321385573,1712110261514,-500.0,0.00054794,120]
[321385574,1712110261523,-541.95,0.00054794,120]
[321385575,1712110261533,-150.0,0.00054794,120]
[321385576,1712110261544,-1175.25,0.00054794,120]
[321385577,1712110261555,-944.47,0.00054794,120]
[321385578,1712110261566,-500.0,0.00054794,120]
[321385579,1712110261576,-621.09,0.00054794,120]
[321385580,1712110261586,-500.0,0.00054794,120]
[321385581,1712110261597,-280.20820633,0.00054794,120]
[321385582,1712110261608,-500.0,0.00054794,120]
[321385583,1712110261624,-500.0,0.00054794,120]
[321385584,1712110261634,-500.0,0.00054794,120]
[321385585,1712110261646,-625.42,0.00054794,120]
[321385586,1712110261656,-500.0,0.00054794,120]
[321385587,1712110261668,-755.54,0.00054794,120]
[321385588,1712110261679,-1219.91,0.00054794,120]
[321385589,1712110261692,-500.0,0.00054794,120]
[321385590,1712110261703,-500.0,0.00054794,120]
[321385591,1712110261714,-500.0,0.00054794,120]
[321385592,1712110261725,-500.0,0.00054794,120]
[321385593,1712110261737,-511.48902047,0.00054794,120]
[321385594,1712110261748,-500.0,0.00054794,120]
[321385595,1712110261758,-463.95177171,0.00054794,120]
[321385596,1712110261772,-1125.13,0.00054794,120]
[321385597,1712110261783,-1000.0,0.00054794,120]
[321385598,1712110261794,-500.0,0.00054794,120]
[321385599,1712110261805,-953.84,0.00054794,120]
[321385600,1712110261818,-500.0,0.00054794,120]
[321385601,1712110261829,-784.38,0.00054794,120]
[321385602,1712110261840,-500.0,0.00054794,120]
[321385603,1712110261850,-505.12076657,0.00054794,120]
[321385604,1712110261864,-500.0,0.00054794,120]
[321385605,1712110261877,-543.34,0.00054794,120]
[321385606,1712110261887,-857.54,0.00054794,120]
[321385607,1712110261898,-871.31,0.00054794,120]
[321385608,1712110261909,-500.0,0.00054794,120]
[321385609,1712110261919,-500.0,0.00054794,120]
[321385610,1712110261928,-776.92,0.00054794,120]
[321385611,1712110261939,-500.0,0.00054794,120]
[321385612,1712110261949,-2624.53,0.00054794,120]
[321385613,1712110261959,-500.0,0.00054794,120]
[321385614,1712110261968,-500.0,0.00054794,120]
[321385615,1712110261978,-537.63,0.00054794,120]
[321385616,1712110261987,-500.0,0.00054794,120]
[321385617,1712110261997,-500.0,0.00054794,120]
[321385618,1712110262007,-500.0,0.00054794,120]
[321385619,1712110262016,-714.94,0.00054794,30]
[321385620,1712110262025,-549.94,0.00054794,120]
[321385621,1712110262034,-500.0,0.00054794,120]
[321385622,1712110262132,-510.18,0.00054794,120]
[321385623,1712110262144,-500.0,0.00054794,120]
[321385624,1712110262154,-656.94,0.00054794,120]
[321385625,1712110262165,-618.51,0.00054794,120]
[321385626,1712110262176,-500.0,0.00054794,120]
[321385627,1712110262187,-500.0,0.00054794,120]
[321385628,1712110262198,-500.0,0.00054794,120]
[321385629,1712110262208,-500.0,0.00054794,120]
[321385630,1712110262218,-500.0,0.00054794,120]
[321385631,1712110262228,-500.0,0.00054794,120]
[321385632,1712110262238,-646.56,0.00054794,120]
[321385633,1712110262249,-636.28748191,0.00054794,120]
[321385634,1712110262259,-500.0,0.00054794,120]
[321385635,1712110262269,-740.86,0.00054794,120]
[321385636,1712110262279,-500.0,0.00054794,120]
[321385637,1712110262288,-747.23,0.00054794,120]
[321385638,1712110262298,-501.92,0.00054794,120]
[321385639,1712110262307,-1144.32,0.00054794,120]
[321385640,1712110262317,-1170.63,0.00054794,120]
[321385641,1712110262327,-500.0,0.00054794,120]
[321385642,1712110262337,-500.0,0.00054794,120]
[321385643,1712110262347,-500.0,0.00054794,120]
[321385644,1712110262358,-500.0,0.00054794,120]
[321385645,1712110262372,-881.45,0.00054794,120]
[321385646,1712110262383,-500.0,0.00054794,120]
[321385647,1712110262393,-511.06980356,0.00054794,120]
[321385648,1712110262402,-500.0,0.00054794,120]
[321385649,1712110262412,-500.0,0.00054794,120]
[321385650,1712110262421,-500.0,0.00054794,120]
[321385651,1712110262432,-500.0,0.00054794,120]
[321385652,1712110262441,-523.335357,0.00054794,120]
[321385653,1712110262450,-730.43,0.00054794,120]
[321385654,1712110262459,-500.0,0.00054794,120]
[321385655,1712110262468,-500.0,0.00054794,120]
[321385656,1712110262478,-500.0,0.00054794,120]
[321385657,1712110262487,-500.0,0.00054794,120]
[321385658,1712110262496,-500.0,0.00054794,120]
[321385659,1712110262506,-500.0,0.00054794,120]
[321385660,1712110262515,-757.47,0.00054794,2]
[321385661,1712110262524,-500.0,0.00054794,120]
[321385662,1712110262533,-517.49275495,0.00054794,120]
[321385663,1712110262543,-500.0,0.00054794,120]
[321385664,1712110262552,-500.0,0.00054794,120]
[321385665,1712110262561,-1332.12,0.00054794,120]
[321385666,1712110262571,-650.81,0.00054794,120]
[321385667,1712110262580,-508.96845516,0.00054794,120]
[321385668,1712110262590,-352.01,0.00054794,120]
[321385669,1712110262599,-500.0,0.00054794,30]
[321385670,1712110262608,-500.0,0.00054794,120]
[321385671,1712110262620,-500.0,0.00054794,120]
[321385672,1712110262629,-510.36156753,0.00054794,120]
[321385673,1712110262639,-500.0,0.00054794,120]
[321385674,1712110262649,-500.0,0.00054794,120]
[321385675,1712110262658,-813.42,0.00054794,120]
[321385676,1712110262668,-500.0,0.00054794,120]
[321385677,1712110262677,-1115.69,0.00054794,120]
[321385678,1712110262686,-500.0,0.00054794,120]
[321385679,1712110262696,-510.95987601,0.00054794,120]
[321385680,1712110262705,-1257.85,0.00054794,120]
[321385681,1712110262714,-689.56,0.00054794,120]
[321385682,1712110262723,-500.0,0.00054794,120]
[321385683,1712110262733,-500.0,0.00054794,120]
[321385684,1712110262742,-500.0,0.00054794,120]
[321385685,1712110262753,-562.61234703,0.00054794,120]
[321385686,1712110262763,-500.0,0.00054794,120]
[321385687,1712110262773,-500.0,0.00054794,120]
[321385688,1712110262783,-500.0,0.00054794,120]
[321385689,1712110262795,-803.34,0.00054794,120]
[321385690,1712110262805,-500.0,0.00054794,120]
[321385691,1712110262815,-500.0,0.00054794,120]
[321385692,1712110262827,-507.6582095,0.00054794,120]
[321385693,1712110263001,-500.0,0.00054794,120]
[321385694,1712110263011,-525.15,0.00054794,120]
[321385695,1712110263021,-500.0,0.00054794,120]
[321385696,1712110263030,-500.0,0.00054794,120]
[321385697,1712110263041,-713.57,0.00054794,120]
[321385698,1712110263050,-507.47,0.00054794,120]
[321385699,1712110263059,-682.71,0.00054794,120]
[321385700,1712110263068,-548.86,0.00054794,120]
[321385701,1712110263078,-500.0,0.00054794,120]
[321385702,1712110263087,-500.0,0.00054794,120]
[321385703,1712110263096,-500.0,0.00054794,120]
[321385704,1712110263106,-500.0,0.00054794,120]
[321385705,1712110263119,-437.92,0.00054794,120]
[321385706,1712110263129,-500.0,0.00054794,120]
[321385707,1712110263138,-852.46,0.00054794,120]
[321385708,1712110263147,-500.0,0.00054794,120]
[321385709,1712110263156,-500.0,0.00054794,120]
[321385710,1712110263166,-500.0,0.00054794,120]
[321385711,1712110263175,-500.0,0.00054794,120]
[321385712,1712110263185,-771.54,0.00054794,120]
[321385713,1712110263194,-732.63,0.00054794,120]
[321385714,1712110263203,-524.30008399,0.00054794,120]
[321385715,1712110263213,-500.0,0.00054794,120]
[321385716,1712110263222,-3808.43,0.00054794,120]
[321385717,1712110263231,-500.0,0.00054794,120]
[321385718,1712110263241,-500.0,0.00054794,120]
[321385719,1712110263250,-500.0,0.00054794,120]
[321385720,1712110263260,-557.81,0.00054794,120]
[321385721,1712110263270,-527.33286908,0.00054794,120]
[321385722,1712110263281,-500.0,0.00054794,120]
[321385723,1712110263291,-500.0,0.00054794,120]
[321385724,1712110263301,-3324.73,0.00054794,120]
[321385725,1712110263311,-500.0,0.00054794,120]
[321385726,1712110263321,-386.38361106,0.00054794,120]
[321385727,1712110263331,-699.54,0.00054794,120]
[321385728,1712110263341,-500.0,0.00054794,120]
[321385729,1712110263350,-2274.22,0.00054794,120]
[321385730,1712110263360,-500.0,0.00054794,120]
[321385731,1712110263372,-568.33,0.00054794,120]
[321385732,1712110263382,-1880.77,0.00054794,120]
[321385733,1712110263391,-1628.1,0.00054794,120]
[321385734,1712110263400,-500.0,0.00054794,120]
[321385735,1712110263410,-6299.56,0.00054794,120]
[321385736,1712110263421,-500.0,0.00054794,120]
[321385737,1712110263430,-500.0,0.00054794,120]
[321385738,1712110263440,-500.0,0.00054794,120]
[321385739,1712110263449,-500.0,0.00054794,120]
[321385740,1712110263458,-1267.35,0.00054794,120]
[321385741,1712110263468,-915.6,0.00054794,120]
[321385742,1712110263477,-500.0,0.00054794,120]
[321385743,1712110263487,-500.0,0.00054794,120]
[321385744,1712110263497,-1569.69,0.00054794,120]
[321385745,1712110263506,-428.47316905,0.00054794,120]
[321385746,1712110263515,-884.83,0.00054794,120]
[321385747,1712110263527,-2292.83,0.00054794,120]
[321385748,1712110263537,-500.0,0.00054794,120]
[321385749,1712110263548,-1000.11,0.00054794,120]
[321385750,1712110263557,-1119.45,0.00054794,120]
[321385751,1712110263567,-500.0,0.00054794,120]
[321385752,1712110263577,-500.0,0.00054794,120]
[321385753,1712110263587,-771.95,0.00054794,120]
[321385754,1712110263596,-4095.19,0.00054794,120]
[321385755,1712110263605,-500.0,0.00054794,120]
[321385756,1712110263618,-598.76,0.00054794,120]
[321385757,1712110263628,-500.0,0.00054794,120]
[321385758,1712110263637,-500.0,0.00054794,120]
[321385759,1712110263648,-500.0,0.00054794,120]
[321385760,1712110263657,-1094.14,0.00054794,120]
[321385761,1712110263666,-1889.19,0.00054794,120]
[321385762,1712110263675,-500.0,0.00054794,120]
[321385763,1712110263684,-515.93674591,0.00054794,120]
[321385764,1712110263694,-500.0,0.00054794,120]
[321385765,1712110263703,-524.21796692,0.00054794,120]
[321385766,1712110263713,-5321.58,0.00054794,120]
[321385767,1712110263722,-1320.31,0.00054794,120]